bitfinex/quotes_BTCUSD_20251010
["timestamp","ask_amount","ask_price","bid_price","bid_amount"]
[1760107064412,0.00015118,121550.0,121540.0,1.2760292]
[1760107065028,0.00015118,121550.0,121540.0,0.7424574]
[1760107065240,0.00015118,121550.0,121540.0,0.5076974]
[1760107065444,0.00015118,121550.0,121540.0,0.7424574]
[1760107066072,0.00015118,121550.0,121540.0,0.4220574]
[1760107066291,0.00015118,121550.0,121540.0,0.7424574]
[1760107066501,0.00015118,121550.0,121540.0,0.6568174]
[1760107066744,0.00015118,121550.0,121540.0,0.4220574]
[1760107066937,0.00015118,121550.0,121540.0,0.6568174]
[1760107067152,0.00015118,121550.0,121540.0,0.7424574]
[1760107069093,0.00015118,121550.0,121540.0,0.4220574]
[1760107069314,0.00015118,121550.0,121540.0,0.7424174]
[1760107069857,0.00015118,121550.0,121540.0,0.6567774]
[1760107070206,0.16469252,121550.0,121540.0,0.6567774]
[1760107070840,0.00015118,121550.0,121540.0,0.6567774]
[1760107076852,0.19752639,121580.0,121570.0,0.16451427]
[1760107076853,0.51274994,121580.0,121570.0,0.16451427]
[1760107077109,0.5204247,121580.0,121570.0,0.12581421]
[1760107077326,0.5204247,121580.0,121570.0,0.52500848]
[1760107077981,0.5204247,121580.0,121570.0,0.12581421]
[1760107078194,0.5204247,121580.0,121570.0,0.36049421]
[1760107078433,0.51274994,121580.0,121570.0,0.31617421]
[1760107079093,0.51274994,121580.0,121570.0,0.36049421]
[1760107079310,0.51274994,121580.0,121570.0,0.31617421]
[1760107079510,1.04632174,121580.0,121570.0,0.31617421]
[1760107079993,1.04632174,121580.0,121570.0,0.28327]
[1760107080209,1.04632174,121580.0,121570.0,0.09291]
[1760107080427,1.04632174,121580.0,121570.0,0.32759]
[1760107080660,0.51274994,121580.0,121570.0,0.32759]
[1760107081294,0.51274994,121580.0,121570.0,0.28327]
[1760107081508,1.26398298,121580.0,121570.0,0.28327]
[1760107081714,1.26398298,121580.0,121570.0,0.04859]
[1760107082134,0.16451427,121570.0,121560.0,0.02176]
[1760107082340,0.54013079,121570.0,121560.0,0.18479]
[1760107082549,0.54013079,121570.0,121560.0,0.065938]
[1760107082771,0.54013079,121570.0,121560.0,0.344938]
[1760107082977,0.54013079,121570.0,121560.0,0.065938]
[1760107083400,0.54013079,121570.0,121560.0,0.23468]
[1760107083641,0.1645278,121560.0,121550.0,0.02313317]
[1760107083859,0.54014432,121560.0,121550.0,0.34093523]
[1760107084070,0.54014432,121560.0,121550.0,0.41002523]
[1760107084484,0.54014432,121560.0,121550.0,0.17534523]
[1760107084697,0.54014432,121560.0,121550.0,0.41388762]
[1760107085546,0.54014432,121560.0,121550.0,0.45495762]
[1760107085772,0.54014432,121560.0,121550.0,0.22027762]
[1760107086008,0.54014432,121560.0,121550.0,0.45495762]
[1760107087508,0.54014432,121560.0,121550.0,0.00137317]
[1760107087509,1.25576084,121560.0,121550.0,0.00137317]
[1760107088341,1.49044084,121560.0,121550.0,0.00137317]
[1760107088575,1.94917942,121560.0,121550.0,0.00137317]
[1760107088983,1.5735629,121560.0,121550.0,0.00137317]
[1760107089210,1.3388829,121560.0,121550.0,0.02939317]
[1760107089410,1.49040084,121560.0,121550.0,0.07053789]
[1760107089623,1.49040084,121560.0,121550.0,0.11160789]
[1760107089624,1.27290388,121560.0,121550.0,0.11160789]
[1760107089774,1.27290388,121560.0,121550.0,0.07053789]
[1760107089984,1.03826388,121560.0,121550.0,0.02076789]
[1760107090187,1.03826388,121560.0,121550.0,0.00137317]
[1760107090394,1.27294388,121560.0,121550.0,0.00137317]
[1760107090977,1.03826388,121560.0,121550.0,0.00137317]
[1760107091400,1.27294388,121560.0,121550.0,0.00137317]
[1760107092234,1.68621784,121560.0,121550.0,0.00137317]
[1760107092475,2.22762563,121560.0,121550.0,1e-08]
[1760107092674,2.24529963,121560.0,121550.0,1e-08]
[1760107092874,6.32891963,121560.0,121550.0,1e-08]
[1760107093246,6.56359963,121560.0,121550.0,1e-08]
[1760107093452,6.32891963,121560.0,121550.0,1e-08]
[1760107093668,6.41455963,121560.0,121550.0,1e-08]
[1760107093891,6.77423961,121560.0,121550.0,1e-08]
[1760107094117,6.58737129,121560.0,121550.0,1e-08]
[1760107094332,6.48066135,121560.0,121550.0,1e-08]
[1760107094555,6.56630135,121560.0,121550.0,1e-08]
[1760107094834,6.82305129,121560.0,121550.0,1e-08]
[1760107095117,6.64066895,121560.0,121550.0,1e-08]
[1760107095315,7.14167771,121560.0,121550.0,1e-08]
[1760107096195,1.40458196,121520.0,121510.0,1e-08]
[1760107096436,2.0214401,121520.0,121510.0,0.00015119]
[1760107096696,2.3417601,121520.0,121510.0,1e-08]
[1760107097333,2.0214401,121520.0,121510.0,1e-08]
[1760107097545,2.3418001,121520.0,121510.0,1e-08]
[1760107098397,2.0214401,121520.0,121510.0,1e-08]
[1760107098610,2.3418401,121520.0,121510.0,1e-08]
[1760107098904,2.3418001,121520.0,121510.0,1e-08]
[1760107099143,2.0214401,121520.0,121510.0,1e-08]
[1760107099388,1.771992,121520.0,121510.0,1e-08]
[1760107100063,1.151592,121520.0,121510.0,1e-08]
[1760107100328,1.771992,121520.0,121510.0,1e-08]
[1760107101181,1.83356582,121520.0,121510.0,1e-08]
[1760107102142,1.83356582,121520.0,121510.0,0.00205518]
[1760107104880,2.13356582,121520.0,121510.0,0.00205518]
[1760107107204,1.81316582,121520.0,121510.0,0.00205518]
[1760107107423,2.15109813,121520.0,121510.0,0.00205518]
[1760107108010,1.83069813,121520.0,121510.0,0.00205518]
[1760107108210,2.15109813,121520.0,121510.0,0.00205518]
[1760107109477,1.91637813,121520.0,121510.0,0.00205518]
[1760107109689,1.83069813,121520.0,121510.0,0.00205518]
[1760107109893,1.91637813,121520.0,121510.0,0.00205518]
[1760107110124,2.15109813,121520.0,121510.0,0.00205518]
[1760107110534,1.91637813,121520.0,121510.0,0.00205518]
[1760107110743,2.15109813,121520.0,121510.0,0.00205518]
[1760107111148,1.76545813,121520.0,121510.0,0.00205518]
[1760107111432,1.53069813,121520.0,121510.0,0.00205518]
[1760107111702,2.12532235,121520.0,121510.0,0.00205518]
[1760107111932,2.06004235,121520.0,121510.0,0.00205518]
[1760107112355,2.36004235,121520.0,121510.0,0.00205518]
[1760107112571,0.93435447,121520.0,121510.0,0.03007518]
[1760107112785,1.16907447,121520.0,121510.0,0.0072377]
[1760107113209,1.50907447,121520.0,121510.0,0.00205518]
[1760107113843,1.65047457,121520.0,121510.0,0.00205518]
[1760107114028,1.88519457,121520.0,121510.0,0.00205518]
[1760107114709,1.50907447,121520.0,121510.0,0.00205518]
[1760107114915,1.88519457,121520.0,121510.0,0.00205518]
[1760107115343,1.65047457,121520.0,121510.0,0.00205518]
[1760107115585,1.50907447,121520.0,121510.0,0.03014518]
[1760107115806,0.54069092,121530.0,121510.0,0.28486885]
[1760107116024,0.54070206,121520.0,121510.0,0.28281368]
[1760107117401,0.91682216,121520.0,121510.0,0.07491818]
[1760107117866,0.54070206,121520.0,121510.0,0.23951368]
[1760107118111,0.54070206,121520.0,121510.0,0.07491818]
[1760107118320,1.25682216,121520.0,121510.0,1e-08]
[1760107119269,1.25682216,121520.0,121510.0,0.02809001]
[1760107119514,1.27446698,121520.0,121510.0,0.02809001]
[1760107119733,0.75694678,121520.0,121510.0,0.25691551]
[1760107119954,0.52222678,121520.0,121510.0,0.25691551]
[1760107120205,0.52222678,121520.0,121510.0,0.13656544]
[1760107120869,0.52222678,121520.0,121510.0,0.09326544]
[1760107121800,0.52222678,121520.0,121510.0,0.30116094]
[1760107122034,0.01764482,121520.0,121510.0,0.30116094]
[1760107122261,0.17224303,121530.0,121510.0,0.38633817]
[1760107122488,0.74696303,121530.0,121520.0,0.18551196]
[1760107122704,0.76460785,121530.0,121520.0,0.1449695]
[1760107122919,0.52988785,121530.0,121520.0,0.1449695]
[1760107123568,0.52988785,121530.0,121520.0,0.1016695]
[1760107123975,0.52988801,121530.0,121520.0,0.1016695]
[1760107124429,0.52988801,121530.0,121520.0,0.1449695]
[1760107124650,0.7645656,121530.0,121520.0,0.30955146]
[1760107124867,0.7645656,121530.0,121520.0,0.1016695]
[1760107125101,0.5298856,121530.0,121520.0,0.1449695]
[1760107125553,0.5298856,121530.0,121520.0,0.30955146]
[1760107125774,0.01764482,121530.0,121520.0,0.39267352]
[1760107125991,0.50455813,121540.0,121530.0,0.16456231]
[1760107126206,0.52990608,121540.0,121530.0,0.29277389]
[1760107126421,0.17222993,121540.0,121530.0,0.33607389]
[1760107126640,0.16455813,121540.0,121530.0,0.33607389]
[1760107127076,0.16455813,121540.0,121530.0,0.12821158]
[1760107127295,0.16455813,121540.0,121530.0,0.04902]
[1760107129288,0.16455813,121540.0,121530.0,0.09291]
[1760107130395,0.16455487,121540.0,121530.0,0.25747841]
[1760107131518,0.38742361,121550.0,121530.0,0.09291]
[1760107131748,0.16455487,121540.0,121530.0,0.09291]
[1760107131964,0.16455487,121540.0,121530.0,0.13432932]
[1760107133279,0.16455487,121540.0,121530.0,0.09043932]
[1760107133499,0.91252828,121540.0,121530.0,0.09043932]
[1760107133710,0.91252828,121540.0,121530.0,0.06888932]
[1760107133924,0.91252828,121540.0,121530.0,0.08915932]
[1760107134378,0.16455487,121540.0,121530.0,0.08915932]
[1760107134830,0.16455487,121540.0,121530.0,0.09018673]
[1760107135257,0.16455487,121540.0,121530.0,0.25475514]
[1760107135470,0.16455487,121540.0,121530.0,0.13407673]
[1760107135900,0.16455487,121540.0,121530.0,0.09018673]
[1760107136351,0.16455487,121540.0,121530.0,0.04876741]
[1760107138704,0.16455487,121540.0,121530.0,0.25722582]
[1760107141887,0.16455487,121540.0,121530.0,0.49182582]
[1760107143680,0.65386765,121550.0,121530.0,0.25722582]
[1760107143895,1.23614613,121550.0,121540.0,0.06297]
[1760107144106,1.23614613,121550.0,121540.0,0.14292784]
[1760107144318,0.5004644,121550.0,121540.0,0.30748271]
[1760107144538,0.99386765,121550.0,121540.0,0.30748271]
[1760107144754,0.99386765,121550.0,121540.0,0.14292784]
[1760107144963,0.99386765,121550.0,121540.0,0.30748271]
[1760107145169,1.0015514,121550.0,121540.0,0.14292784]
[1760107145366,0.99386765,121550.0,121540.0,0.30748271]
[1760107145790,0.84108404,121550.0,121540.0,0.30748271]
[1760107146000,0.50454134,121550.0,121540.0,0.30748271]
[1760107146641,0.50454134,121550.0,121540.0,0.54208271]
[1760107146855,0.50454134,121550.0,121540.0,0.37752784]
[1760107147496,0.50454134,121550.0,121540.0,0.54208271]
[1760107147704,0.16454134,121550.0,121540.0,0.54208271]
[1760107148550,0.90021184,121560.0,121540.0,0.54208271]
[1760107148768,0.16454134,121550.0,121540.0,0.49957271]
[1760107148982,0.16454134,121550.0,121540.0,0.37748784]
[1760107149193,0.16454134,121550.0,121540.0,0.3780015]
[1760107149667,0.66562538,121550.0,121540.0,0.3780015]
[1760107150317,0.6995446,121550.0,121540.0,0.3780015]
[1760107151390,0.66562538,121550.0,121540.0,0.54255637]
[1760107152058,0.16454134,121550.0,121540.0,0.54255637]
[1760107152260,0.66562538,121550.0,121540.0,0.54255637]
[1760107152481,0.43315409,121560.0,121540.0,0.54255637]
[1760107152482,0.67519708,121570.0,121550.0,0.16454134]
[1760107152702,0.00906854,121570.0,121560.0,0.2564678]
[1760107152923,0.00906854,121570.0,121560.0,0.4910278]
[1760107152924,0.00137306,121570.0,121560.0,0.4910278]
[1760107153129,0.16588733,121570.0,121560.0,0.3265]
[1760107153353,0.17358281,121570.0,121560.0,0.3265]
[1760107153571,0.17358281,121570.0,121560.0,0.09194]
[1760107153786,0.17373402,121570.0,121560.0,0.12519073]
[1760107154015,0.67481806,121570.0,121560.0,0.31724073]
[1760107154651,0.67481806,121570.0,121560.0,0.08268073]
[1760107154861,0.67481218,121570.0,121560.0,0.31724073]
[1760107155506,0.67581218,121570.0,121560.0,0.31724073]
[1760107155720,0.70984516,121570.0,121560.0,0.31724073]
[1760107155964,0.70884516,121570.0,121560.0,0.12519073]
[1760107156174,0.70884516,121570.0,121560.0,0.52423853]
[1760107156385,0.70884516,121570.0,121560.0,0.35971073]
[1760107157033,0.17372814,121570.0,121560.0,0.28971853]
[1760107157255,0.00152427,121570.0,121560.0,0.60736059]
[1760107157674,0.16603854,121570.0,121560.0,0.60736059]
[1760107159422,0.00152427,121570.0,121560.0,0.60736059]
[1760107159621,0.00152427,121570.0,121560.0,0.37284059]
[1760107159861,0.00152427,121570.0,121560.0,0.60736059]
[1760107160482,0.16603854,121570.0,121560.0,0.60736059]
[1760107160907,0.16603854,121570.0,121560.0,0.20831279]
[1760107161129,0.16603854,121570.0,121560.0,0.37284059]
[1760107161343,0.16603854,121570.0,121560.0,0.60732059]
[1760107161558,0.16603854,121570.0,121560.0,0.20831279]
[1760107161805,0.16603854,121570.0,121560.0,0.60732059]
[1760107162026,0.16603854,121570.0,121560.0,0.17506206]
[1760107162175,0.66712258,121570.0,121560.0,0.57406986]
[1760107163027,0.16603854,121570.0,121560.0,0.57406986]
[1760107163323,0.16603854,121570.0,121560.0,0.33958986]
[1760107163522,0.16603854,121570.0,121560.0,0.09194]
[1760107163681,0.16603854,121570.0,121560.0,0.28391]
[1760107163883,0.16603854,121570.0,121560.0,0.48571425]
[1760107164089,0.16603854,121570.0,121560.0,0.32118645]
[1760107164277,0.66712258,121570.0,121560.0,0.32118645]
[1760107164726,0.66712258,121570.0,121560.0,0.36369645]
[1760107164948,0.66712258,121570.0,121560.0,0.09194]
[1760107165140,0.66712258,121570.0,121560.0,0.04943]
[1760107165365,0.66712258,121570.0,121560.0,0.28391]
[1760107165769,0.66712258,121570.0,121560.0,0.04943]
[1760107165979,0.66712258,121570.0,121560.0,0.28391]
[1760107166436,0.66712258,121570.0,121560.0,0.04943]
[1760107166613,0.5045278,121560.0,121550.0,0.02046]
[1760107166790,0.16454134,121550.0,121540.0,0.0719615]
[1760107166991,0.66562538,121550.0,121540.0,0.3353715]
[1760107167190,1.00562538,121550.0,121540.0,0.0515015]
[1760107167398,1.00562538,121550.0,121540.0,0.00051366]
[1760107167652,1.00562538,121550.0,121540.0,0.21943366]
[1760107168085,1.00562538,121550.0,121540.0,0.00051366]
[1760107168619,1.24775801,121550.0,121540.0,0.00051366]
[1760107169301,1.24006538,121550.0,121540.0,0.00051366]
[1760107169516,1.00562538,121550.0,121540.0,0.00051366]
[1760107169685,1.00562538,121550.0,121540.0,0.02948366]
[1760107169686,1.24006538,121550.0,121540.0,0.02948366]
[1760107170077,1.24006538,121550.0,121540.0,0.04540881]
[1760107170503,1.00562538,121550.0,121540.0,0.04540881]
[1760107170727,1.24006538,121550.0,121540.0,0.04540881]
[1760107171605,1.24006538,121550.0,121540.0,0.09483881]
[1760107171821,1.24006538,121550.0,121540.0,0.04540881]
[1760107172250,1.00562538,121550.0,121540.0,0.04540881]
[1760107172460,1.24006538,121550.0,121540.0,0.04540881]
[1760107173380,1.24006538,121550.0,121540.0,0.07304881]
[1760107174234,1.00562538,121550.0,121540.0,0.07304881]
[1760107174456,1.00562538,121550.0,121540.0,0.02815366]
[1760107174457,1.24006538,121550.0,121540.0,0.02815366]
[1760107174672,1.00562538,121550.0,121540.0,0.04852366]
[1760107174884,1.24006538,121550.0,121540.0,0.04852366]
[1760107175096,1.00562538,121550.0,121540.0,0.04852366]
[1760107175562,1.24006538,121550.0,121540.0,0.04852366]
[1760107175777,1.24006538,121550.0,121540.0,0.00051366]
[1760107181452,1.00562538,121550.0,121540.0,0.00051366]
[1760107181596,0.50454134,121550.0,121540.0,0.09224366]
[1760107181807,1.24006538,121550.0,121540.0,0.11996162]
[1760107182007,1.24006538,121550.0,121540.0,0.07624162]
[1760107182411,1.24006538,121550.0,121540.0,0.00051366]
[1760107183077,1.24006538,121550.0,121540.0,0.02815366]
[1760107183665,1.24006538,121550.0,121540.0,0.00051366]
[1760107184428,1.24006538,121550.0,121540.0,0.02815366]
[1760107184621,1.24006538,121550.0,121540.0,0.00051366]
[1760107185291,0.73898134,121550.0,121540.0,0.04852366]
[1760107185493,1.24006538,121550.0,121540.0,0.11558978]
[1760107185706,1.11478291,121550.0,121540.0,0.07186978]
[1760107186780,1.11478291,121550.0,121540.0,0.04422978]
[1760107187254,1.11478291,121550.0,121540.0,0.00051366]
[1760107188638,1.49058448,121550.0,121540.0,0.00051366]
[1760107190213,1.11478291,121550.0,121540.0,0.00051366]
[1760107191096,0.88034291,121550.0,121540.0,0.00051366]
[1760107191310,1.11478291,121550.0,121540.0,0.00051366]
[1760107191526,1.11474291,121550.0,121540.0,0.00051366]
[1760107191735,1.11474291,121550.0,121540.0,0.02857366]
[1760107191954,1.11474291,121550.0,121540.0,0.00539203]
[1760107192137,1.11474291,121550.0,121540.0,0.00051366]
[1760107192818,0.88034291,121550.0,121540.0,0.00051366]
[1760107193027,1.11474291,121550.0,121540.0,0.02857366]
[1760107193464,1.11474291,121550.0,121540.0,0.00051366]
[1760107195112,1.49054448,121550.0,121540.0,0.00051366]
[1760107196887,0.88034291,121550.0,121540.0,0.00051366]
[1760107197109,1.11474291,121550.0,121540.0,0.00051366]
[1760107197334,0.88034291,121550.0,121540.0,0.00051366]
[1760107197543,1.11474291,121550.0,121540.0,0.00051366]
[1760107199685,0.88034291,121550.0,121540.0,0.00051366]
[1760107199872,0.73894134,121550.0,121540.0,0.02857366]
[1760107200136,1.11474291,121550.0,121540.0,0.07439482]
[1760107200352,1.11474291,121550.0,121540.0,0.02612482]
[1760107200572,0.88034291,121550.0,121540.0,0.02612482]
[1760107200813,1.11474291,121550.0,121540.0,0.02612482]
[1760107201543,0.88034291,121550.0,121540.0,0.00051366]
[1760107201754,1.11470291,121550.0,121540.0,0.00051366]
[1760107201934,0.88034291,121550.0,121540.0,0.00051366]
[1760107202163,1.11470291,121550.0,121540.0,0.00051366]
[1760107202866,0.73890134,121550.0,121540.0,0.00051366]
[1760107203070,0.88034291,121550.0,121540.0,0.00051366]
[1760107203305,1.11470291,121550.0,121540.0,0.00051366]
[1760107203732,0.88034291,121550.0,121540.0,0.00051366]
[1760107203968,1.11470291,121550.0,121540.0,0.00051366]
[1760107204189,1.11470291,121550.0,121540.0,0.25339853]
[1760107204190,0.16454134,121550.0,121540.0,0.25339853]
[1760107204420,0.64219991,121570.0,121560.0,0.1645278]
[1760107204650,0.56657577,121570.0,121560.0,0.2528578]
[1760107204894,0.16603854,121570.0,121560.0,0.2528578]
[1760107205125,0.54184011,121570.0,121560.0,0.2528578]
[1760107205573,0.54184011,121570.0,121560.0,0.0483]
[1760107205812,0.54184011,121570.0,121560.0,0.07158913]
[1760107206055,0.54184011,121570.0,121560.0,0.27614693]
[1760107206512,0.54284011,121570.0,121560.0,0.27614693]
[1760107206732,0.54284011,121570.0,121560.0,0.07158913]
[1760107206951,0.54184011,121570.0,121560.0,0.07158913]
[1760107207205,0.54184011,121570.0,121560.0,0.23611693]
[1760107208020,0.54184011,121570.0,121560.0,0.07158913]
[1760107208883,0.16603854,121570.0,121560.0,0.07158913]
[1760107209105,0.54184011,121570.0,121560.0,0.07158913]
[1760107209324,0.16603854,121570.0,121550.0,0.45893931]
[1760107209543,0.54184011,121570.0,121550.0,0.54206137]
[1760107209798,0.1645278,121560.0,121550.0,0.54206137]
[1760107210021,0.54184011,121570.0,121550.0,0.54206137]
[1760107210238,0.54184011,121570.0,121550.0,0.57031137]
[1760107210452,0.54184011,121570.0,121560.0,0.2246078]
[1760107210654,0.54184011,121570.0,121560.0,0.2528578]
[1760107210886,0.00152427,121570.0,121560.0,0.2528578]
[1760107211133,0.00152427,121570.0,121560.0,0.94610143]
[1760107211601,0.00152427,121570.0,121560.0,0.71178143]
[1760107211817,0.16603854,121570.0,121560.0,0.41597666]
[1760107212029,0.16603854,121570.0,121560.0,0.65029666]
[1760107212250,0.54184011,121570.0,121560.0,0.17145206]
[1760107212461,0.54184011,121570.0,121560.0,0.13142206]
[1760107212664,0.54184011,121570.0,121560.0,0.33597986]
[1760107212851,0.54184011,121570.0,121560.0,0.40577206]
[1760107213008,0.54184011,121570.0,121560.0,0.57029986]
[1760107213221,0.54184011,121570.0,121560.0,0.33597986]
[1760107213629,0.54184011,121570.0,121560.0,0.65025666]
[1760107214859,0.1645278,121560.0,121550.0,0.26458736]
[1760107215067,0.1645278,121560.0,121550.0,0.62201942]
[1760107215286,0.1645278,121560.0,121550.0,0.65026942]
[1760107215494,0.54184011,121570.0,121560.0,0.1645278]
[1760107215695,0.54184011,121570.0,121560.0,0.2128278]
[1760107215897,0.54184011,121570.0,121560.0,0.1282968]
[1760107216339,0.16603854,121570.0,121560.0,0.2528578]
[1760107216529,0.54184011,121570.0,121560.0,0.2128278]
[1760107217187,0.16603854,121570.0,121560.0,0.2528578]
[1760107217446,0.16603854,121570.0,121560.0,0.4871378]
[1760107217665,0.54184011,121570.0,121560.0,0.4871378]
[1760107218113,0.54184011,121570.0,121560.0,0.0483]
[1760107218327,0.54184011,121570.0,121560.0,0.28258]
[1760107218543,0.54184011,121570.0,121560.0,0.06623749]
[1760107218759,0.54184011,121570.0,121560.0,0.10626749]
[1760107218945,0.16603854,121570.0,121560.0,0.50507529]
[1760107219185,0.16603854,121570.0,121560.0,0.27079529]
[1760107219399,0.16603854,121570.0,121560.0,0.2528578]
[1760107219605,0.16603854,121570.0,121560.0,0.4870978]
[1760107220439,0.16603854,121570.0,121560.0,0.2528578]
[1760107220645,0.16603854,121570.0,121560.0,0.4870978]
[1760107221064,0.16603854,121570.0,121560.0,0.5670946]
[1760107221274,0.54184011,121570.0,121560.0,0.3328546]
[1760107221474,0.54184011,121570.0,121560.0,0.1683268]
[1760107221685,0.54184011,121570.0,121560.0,0.5670946]
[1760107221893,0.00152427,121570.0,121560.0,0.3328546]
[1760107222108,0.00152427,121570.0,121560.0,1.02601823]
[1760107222952,0.00152427,121570.0,121560.0,1.1675798]
[1760107223150,0.00152427,121570.0,121560.0,1.4018198]
[1760107223364,0.00152427,121570.0,121560.0,1.02601823]
[1760107223571,0.00152427,121570.0,121560.0,0.41597666]
[1760107223786,0.16603854,121570.0,121560.0,0.48568886]
[1760107223994,0.54184011,121570.0,121560.0,0.65021666]
[1760107224625,0.54184011,121570.0,121560.0,0.28254]
[1760107224952,0.54184011,121570.0,121560.0,0.23424]
[1760107225091,0.54184011,121570.0,121560.0,0.26249]
[1760107225575,0.1645278,121560.0,121550.0,0.22462059]
[1760107225806,0.54032937,121560.0,121550.0,0.30774265]
[1760107226011,0.54032937,121560.0,121550.0,0.17145206]
[1760107226278,0.54032937,121560.0,121550.0,0.62886629]
[1760107226921,0.54032937,121560.0,121550.0,0.39466629]
[1760107227137,0.54032937,121560.0,121550.0,0.62886629]
[1760107227546,0.54032937,121560.0,121550.0,0.23012495]
[1760107227771,0.54032937,121560.0,121550.0,0.46432495]
[1760107227987,0.54032937,121560.0,121540.0,0.02056366]
[1760107227988,0.16454134,121550.0,121540.0,0.02056366]
[1760107228221,0.16454134,121550.0,121540.0,0.23179366]
[1760107228222,0.88034291,121550.0,121540.0,0.23179366]
[1760107228467,1.25614448,121550.0,121540.0,0.00051366]
[1760107228691,1.94926811,121550.0,121540.0,0.00051366]
[1760107229139,2.57942001,121550.0,121540.0,0.00051366]
[1760107229355,2.60477163,121550.0,121540.0,0.00151366]
[1760107229572,2.45621163,121550.0,121540.0,0.00151366]
[1760107229785,2.67273327,121550.0,121540.0,0.00151366]
[1760107229982,2.67273327,121550.0,121540.0,0.00051366]
[1760107230410,2.58709327,121550.0,121540.0,0.00051366]
[1760107230625,2.67273327,121550.0,121540.0,0.00051366]
[1760107231702,2.49879015,121550.0,121540.0,0.00051366]
[1760107232343,2.73303015,121550.0,121540.0,0.00051366]
[1760107232700,2.41315015,121550.0,121540.0,0.00051366]
[1760107232836,2.73301852,121550.0,121540.0,0.00051366]
[1760107233337,2.73401852,121550.0,121540.0,0.00051366]
[1760107233552,3.05166407,121550.0,121540.0,1e-08]
[1760107234859,3.05266407,121550.0,121540.0,1e-08]
[1760107235711,3.05270407,121550.0,121540.0,1e-08]
[1760107235903,2.75752467,121550.0,121540.0,1e-08]
[1760107236121,2.77744467,121550.0,121540.0,1e-08]
[1760107236336,2.54320467,121550.0,121540.0,1e-08]
[1760107236574,2.4016431,121550.0,121540.0,1e-08]
[1760107236778,2.3769025,121550.0,121540.0,1e-08]
[1760107236995,2.1426625,121550.0,121540.0,1e-08]
[1760107237199,2.3769025,121550.0,121540.0,1e-08]
[1760107237416,2.2912225,121550.0,121540.0,1e-08]
[1760107237622,2.3769025,121550.0,121540.0,1e-08]
[1760107238081,3.05270407,121550.0,121540.0,1e-08]
[1760107238516,3.07744467,121550.0,121540.0,1e-08]
[1760107238731,3.05270407,121550.0,121540.0,1e-08]
[1760107239197,2.73278407,121550.0,121540.0,1e-08]
[1760107239410,2.6769025,121550.0,121540.0,1e-08]
[1760107239855,3.49590407,121550.0,121540.0,1e-08]
[1760107240087,3.17598407,121550.0,121540.0,1e-08]
[1760107240307,2.96166407,121550.0,121540.0,1e-08]
[1760107240495,3.19590407,121550.0,121540.0,1e-08]
[1760107240715,2.87598407,121550.0,121540.0,1e-08]
[1760107240955,3.19590407,121550.0,121540.0,1e-08]
[1760107241901,2.90072467,121550.0,121540.0,1e-08]
[1760107242120,3.19590407,121550.0,121540.0,1e-08]
[1760107243024,3.22064467,121550.0,121540.0,1e-08]
[1760107243283,3.19590407,121550.0,121540.0,1e-08]
[1760107243527,2.87598407,121550.0,121540.0,1e-08]
[1760107243739,1.44091773,121550.0,121540.0,1e-08]
[1760107243964,1.53500087,121550.0,121540.0,1e-08]
[1760107244173,1.69133844,121550.0,121540.0,1e-08]
[1760107244610,1.37141844,121550.0,121540.0,1e-08]
[1760107245053,1.60565844,121550.0,121540.0,1e-08]
[1760107245285,1.00126654,121550.0,121540.0,1e-08]
[1760107245520,1.15238448,121550.0,121540.0,1e-08]
[1760107245742,0.90192487,121550.0,121540.0,0.02726001]
[1760107245961,0.66768487,121550.0,121540.0,0.06769457]
[1760107246177,0.66768487,121550.0,121540.0,0.27136944]
[1760107246178,0.90192487,121550.0,121540.0,0.27136944]
[1760107246399,1.00768487,121550.0,121540.0,0.27136944]
[1760107246614,0.66668487,121550.0,121540.0,0.27136944]
[1760107247098,1.00668487,121550.0,121540.0,0.27136944]
[1760107247986,1.00568487,121550.0,121540.0,0.27136944]
[1760107248222,1.00568487,121550.0,121540.0,0.10681457]
[1760107248451,1.00568487,121550.0,121540.0,1e-08]
[1760107248664,1.23992487,121550.0,121540.0,1e-08]
[1760107249554,1.00568487,121550.0,121540.0,0.04747001]
[1760107249797,1.23992487,121550.0,121540.0,0.08750001]
[1760107250012,1.23992487,121550.0,121540.0,0.0746088]
[1760107250234,1.23992487,121550.0,121540.0,0.1146388]
[1760107250901,1.00568487,121550.0,121540.0,0.1146388]
[1760107251118,1.23988487,121550.0,121540.0,0.1146388]
[1760107251341,1.00568487,121550.0,121540.0,0.0746088]
[1760107251783,1.23988487,121550.0,121540.0,0.04747001]
[1760107251974,1.23988487,121550.0,121540.0,1e-08]
[1760107252227,1.23988487,121550.0,121540.0,0.02714001]
[1760107252448,1.23988487,121550.0,121540.0,0.04747001]
[1760107252670,1.23947557,121550.0,121540.0,0.04747001]
[1760107252889,1.23947557,121550.0,121540.0,0.07460877]
[1760107253118,1.23947557,121550.0,121540.0,0.04747001]
[1760107253311,1.00527557,121550.0,121540.0,0.04747001]
[1760107253781,1.23947557,121550.0,121540.0,0.04747001]
[1760107254234,1.23947557,121550.0,121540.0,1e-08]
[1760107254688,1.23947557,121550.0,121540.0,0.04747001]
[1760107254907,1.23947557,121550.0,121540.0,0.02033001]
[1760107255123,1.23947557,121550.0,121540.0,0.04475478]
[1760107255327,1.23947557,121550.0,121540.0,0.02442478]
[1760107255552,0.66568487,121550.0,121540.0,1e-08]
[1760107255776,1.01315883,121550.0,121540.0,1e-08]
[1760107255993,1.31315883,121550.0,121540.0,1e-08]
[1760107256215,1.32082798,121550.0,121540.0,1e-08]
[1760107256626,1.338505,121550.0,121540.0,1e-08]
[1760107256842,1.33850793,121550.0,121540.0,1e-08]
[1760107257538,1.44430793,121550.0,121540.0,1e-08]
[1760107257753,1.67846793,121550.0,121540.0,1e-08]
[1760107258376,1.67847105,121550.0,121540.0,1e-08]
[1760107259041,1.68047105,121550.0,121540.0,1e-08]
[1760107260338,1.68051105,121550.0,121540.0,1e-08]
[1760107261019,1.98047105,121550.0,121540.0,1e-08]
[1760107261669,2.00256506,121550.0,121540.0,1e-08]
[1760107263313,1.76840506,121550.0,121540.0,1e-08]
[1760107263543,2.00256506,121550.0,121540.0,1e-08]
[1760107264719,1.76840506,121550.0,121540.0,1e-08]
[1760107264914,2.08824506,121550.0,121540.0,1e-08]
[1760107265125,2.09538306,121550.0,121540.0,1e-08]
[1760107265358,2.09542306,121550.0,121540.0,1e-08]
[1760107265569,2.12749084,121550.0,121540.0,1e-08]
[1760107265780,2.57069084,121550.0,121540.0,1e-08]
[1760107266227,2.81751084,121550.0,121540.0,1e-08]
[1760107268100,2.58331084,121550.0,121540.0,1e-08]
[1760107268323,3.36279426,121550.0,121540.0,1e-08]
[1760107268543,7.77666765,121550.0,121540.0,1e-08]
[1760107268763,7.45678765,121550.0,121540.0,1e-08]
[1760107268987,4.60432412,121550.0,121540.0,1e-08]
[1760107269212,4.45242412,121550.0,121540.0,1e-08]
[1760107269426,4.35242413,121550.0,121540.0,1e-08]
[1760107269644,4.45242412,121550.0,121540.0,1e-08]
[1760107270124,4.45342412,121550.0,121540.0,1e-08]